fUST/lending_fUST_20241029
["ID","MTS","AMOUNT","RATE_DAILY","PERIOD"]
[340944326,1730142641975,-360.07275156,0.00025479,4]
[340944327,1730142641984,-500.0,0.00025479,4]
[340944328,1730142641993,-151.0,0.00025479,7]
[340944329,1730142642003,-500.0,0.00025479,4]
[340944330,1730142642012,-500.0,0.00025479,4]
[340944331,1730142642026,-151.0,0.00025479,7]
[340944332,1730142642035,-480.470907,0.00025479,7]
[340944333,1730142642045,-480.470907,0.00025479,7]
[340944334,1730142642054,-520.66,0.00025479,4]
[340944335,1730142642064,-500.0,0.00025479,4]
[340944336,1730142642073,-500.0,0.00025479,4]
[340944337,1730142642083,-446.52961,0.00025479,7]
[340944338,1730142642093,-500.0,0.00025479,4]
[340944339,1730142642105,-259.456294,0.00025479,7]
[340944340,1730142642115,-446.52961,0.00025479,7]
[340944341,1730142642125,-151.0,0.00025479,7]
[340944342,1730142642134,-259.456294,0.00025479,7]
[340944343,1730142642143,-152.65801389,0.00025479,4]
[340944344,1730142642152,-151.0,0.00025479,7]
[340944345,1730142642161,-500.0,0.00025479,4]
[340944346,1730142642170,-711.07,0.00025479,4]
[340944347,1730142642179,-500.0,0.00025479,4]
[340944348,1730142642189,-500.0,0.00025479,4]
[340944349,1730142642198,-500.0,0.00025479,4]
[340944350,1730142642207,-151.0,0.00025479,7]
[340944351,1730142642216,-235.6941,0.00025479,7]
[340944352,1730142642231,-500.0,0.00025479,4]
[340944353,1730142642245,-152.89,0.00025479,4]
[340944354,1730142642255,-235.6941,0.00025479,7]
[340944355,1730142642263,-500.0,0.00025479,4]
[340944356,1730142642272,-151.0,0.00025479,7]
[340944357,1730142642282,-153.858591,0.00025479,7]
[340944358,1730142642290,-500.0,0.00025479,4]
[340944359,1730142642299,-153.858591,0.00025479,7]
[340944360,1730142642308,-500.0,0.00025479,4]
[340944361,1730142642318,-500.0,0.00025479,4]
[340944362,1730142642326,-500.0,0.00025479,4]
[340944363,1730142642335,-848.9,0.00025479,4]
[340944364,1730142642344,-500.0,0.00025479,4]
[340944365,1730142642353,-1195.33,0.00025479,4]
[340944366,1730142642362,-1627.25,0.00025479,4]
[340944367,1730142642372,-150.0,0.00025507,2]
[340944368,1730142642381,-150.0,0.00025507,2]
[340944369,1730142642390,-150.0,0.0002569,2]
[340944370,1730142642400,-205.034485,0.00025749,2]
[340944371,1730142642409,-453.848349,0.00025749,2]
[340944372,1730142642418,-205.034485,0.00025749,2]
[340944373,1730142642428,-500.0,0.00025753,4]
[340944374,1730142642440,-500.0,0.00025753,4]
[340944375,1730142642449,-500.0,0.00025753,4]
[340944376,1730142642458,-500.0,0.00025753,4]
[340944377,1730142642467,-500.0,0.00025753,4]
[340944378,1730142642479,-287.28888362,0.00025753,4]
[340944379,1730142642489,-500.0,0.00025753,4]
[340944380,1730142642498,-500.0,0.00025753,4]
[340944381,1730142642507,-500.0,0.00025753,4]
[340944382,1730142642516,-500.0,0.00025753,4]
[340944383,1730142642525,-500.0,0.00025753,4]
[340944384,1730142642534,-500.0,0.00025753,4]
[340944385,1730142642544,-500.0,0.00025753,4]
[340944386,1730142642554,-506.2638029,0.00025753,4]
[340944387,1730142642563,-500.0,0.00025753,4]
[340944388,1730142642573,-500.0,0.00025753,4]
[340944389,1730142642582,-500.0,0.00025753,4]
[340944390,1730142642592,-500.0,0.00025753,4]
[340944391,1730142642601,-500.0,0.00025753,4]
[340944392,1730142642610,-500.0,0.00025753,4]
[340944393,1730142642620,-500.0,0.00025753,4]
[340944394,1730142642630,-500.0,0.00025753,4]
[340944395,1730142642639,-500.0,0.00025753,4]
[340944396,1730142642649,-500.0,0.00025753,4]
[340944397,1730142642658,-500.0,0.00025753,4]
[340944398,1730142642668,-500.0,0.00025753,4]
[340944399,1730142642677,-500.0,0.00025753,4]
[340944400,1730142642686,-500.0,0.00025753,4]
[340944401,1730142642696,-500.0,0.00025753,4]
[340944402,1730142642705,-759.97,0.00025753,4]
[340944403,1730142642715,-500.0,0.00025753,4]
[340944404,1730142642727,-500.0,0.00025753,4]
[340944405,1730142642736,-500.0,0.00025753,4]
[340944406,1730142642746,-500.0,0.00025753,4]
[340944407,1730142642755,-520.66,0.00025753,4]
[340944408,1730142642765,-500.0,0.00025753,4]
[340944409,1730142642774,-500.0,0.00025753,4]
[340944410,1730142642783,-500.0,0.00025753,4]
[340944411,1730142642793,-500.0,0.00025753,4]
[340944412,1730142642802,-711.07,0.00025753,4]
[340944413,1730142642812,-500.0,0.00025753,4]
[340944414,1730142642822,-500.0,0.00025753,4]
[340944415,1730142642831,-500.0,0.00025753,4]
[340944416,1730142642840,-500.0,0.00025753,4]
[340944417,1730142642850,-320.3286192,0.00025753,4]
[340944418,1730142642859,-500.0,0.00025753,4]
[340944419,1730142642868,-500.0,0.00025753,4]
[340944420,1730142642877,-500.0,0.00025753,4]
[340944421,1730142642886,-500.0,0.00025753,4]
[340944422,1730142642896,-848.9,0.00025753,4]
[340944423,1730142642905,-500.0,0.00025753,4]
[340944424,1730142642914,-1195.33,0.00025753,4]
[340944425,1730142642924,-1627.25,0.00025753,4]
[340944426,1730142642933,-10563.57032477,0.00026,2]
[340944427,1730142642943,-151.0,0.00026017,7]
[340944428,1730142642952,-205.265199,0.00026017,7]
[340944429,1730142642961,-205.265199,0.00026017,7]
[340944430,1730142642970,-151.0,0.00026017,7]
[340944431,1730142642981,-151.0,0.00026017,7]
[340944432,1730142642990,-151.0,0.00026017,7]
[340944434,1730142643000,-227.123576,0.00026017,7]
[340944436,1730142643009,-151.0,0.00026017,7]
[340944438,1730142643021,-151.0,0.00026017,7]
[340944440,1730142643030,-151.0,0.00026017,7]
[340944442,1730142643041,-192.778145,0.00026017,7]
[340944443,1730142643051,-192.778145,0.00026017,7]
[340944444,1730142643060,-151.0,0.00026017,7]
[340944445,1730142643069,-337.474659,0.00026017,7]
[340944446,1730142643078,-151.0,0.00026017,7]
[340944447,1730142643088,-337.474659,0.00026017,7]
[340944448,1730142643097,-151.0,0.00026017,7]
[340944449,1730142643106,-151.0,0.00026017,7]
[340944450,1730142643116,-480.470907,0.00026017,7]
[340944451,1730142643126,-480.470907,0.00026017,7]
[340944453,1730142643135,-446.52961,0.00026017,7]
[340944455,1730142643145,-259.456294,0.00026017,7]
[340944456,1730142643155,-446.52961,0.00026017,7]
[340944457,1730142643164,-151.0,0.00026017,7]
[340944458,1730142643173,-259.456294,0.00026017,7]
[340944461,1730142643183,-235.6941,0.00026017,7]
[340944463,1730142643311,-235.6941,0.00026017,7]
[340944464,1730142643321,-500.0,0.00026027,4]
[340944465,1730142643331,-186.38014511,0.00026027,4]
[340944466,1730142643340,-500.0,0.00026027,4]
[340944467,1730142643350,-500.0,0.00026027,4]
[340944468,1730142643359,-540.10687247,0.00026027,4]
[340944469,1730142643369,-500.0,0.00026027,4]
[340944470,1730142643379,-500.0,0.00026027,4]
[340944471,1730142643388,-500.0,0.00026027,4]
[340944472,1730142643397,-500.0,0.00026027,4]
[340944473,1730142643407,-410.0096257,0.00026027,4]
[340944474,1730142643417,-500.0,0.00026027,4]
[340944475,1730142643427,-500.0,0.00026027,4]
[340944477,1730142643436,-500.0,0.00026027,4]
[340944479,1730142643446,-500.0,0.00026027,4]
[340944480,1730142643456,-500.0,0.00026027,4]
[340944482,1730142643466,-500.0,0.00026027,4]
[340944484,1730142643477,-500.0,0.00026027,4]
[340944486,1730142643486,-259.6269353,0.00026027,4]
[340944487,1730142643495,-500.0,0.00026027,4]
[340944488,1730142643505,-500.0,0.00026027,4]
[340944490,1730142643514,-500.0,0.00026027,4]
[340944491,1730142643524,-500.0,0.00026027,4]
[340944492,1730142643534,-500.0,0.00026027,4]
[340944493,1730142643543,-500.0,0.00026027,4]
[340944495,1730142643552,-500.0,0.00026027,4]
[340944496,1730142643562,-500.0,0.00026027,4]
[340944497,1730142643571,-759.97,0.00026027,4]
[340944498,1730142643580,-500.0,0.00026027,4]
[340944499,1730142643589,-500.0,0.00026027,4]
[340944500,1730142643599,-500.0,0.00026027,4]
[340944501,1730142643608,-500.0,0.00026027,4]
[340944502,1730142643618,-520.66,0.00026027,4]
[340944503,1730142643627,-500.0,0.00026027,4]
[340944504,1730142643637,-500.0,0.00026027,4]
[340944505,1730142643646,-500.0,0.00026027,4]
[340944506,1730142643656,-500.0,0.00026027,4]
[340944507,1730142643665,-711.07,0.00026027,4]
[340944508,1730142643675,-500.0,0.00026027,4]
[340944509,1730142643684,-500.0,0.00026027,4]
[340944510,1730142643694,-500.0,0.00026027,4]
[340944511,1730142643704,-500.0,0.00026027,4]
[340944512,1730142643713,-500.0,0.00026027,4]
[340944513,1730142643725,-500.0,0.00026027,4]
[340944514,1730142643734,-500.0,0.00026027,4]
[340944515,1730142643744,-500.0,0.00026027,4]
[340944516,1730142643753,-848.9,0.00026027,4]
[340944517,1730142643762,-500.0,0.00026027,4]
[340944518,1730142643772,-1627.25,0.00026027,4]
[340944519,1730142643782,-1195.33,0.00026027,4]
[340944520,1730142643791,-1000.0,0.00026042,2]
[340944521,1730142643802,-1000.0,0.00026042,2]
[340944522,1730142643811,-1000.0,0.00026042,2]
[340944523,1730142643821,-151.282783,0.00026059,2]
[340944524,1730142643831,-205.034485,0.00026059,2]
[340944525,1730142643840,-453.848349,0.00026059,2]
[340944526,1730142643850,-205.034485,0.00026059,2]
[340944527,1730142643860,-500.0,0.00026173,2]
[340944528,1730142643869,-151.0,0.00026272,7]
[340944529,1730142643878,-151.0,0.00026272,7]
[340944530,1730142643887,-151.0,0.00026272,7]
[340944531,1730142643897,-151.820011,0.00026281,7]
[340944532,1730142643906,-151.0,0.00026287,7]
[340944533,1730142643915,-151.0,0.00026287,7]
[340944534,1730142643925,-151.0,0.00026287,7]
[340944535,1730142643935,-500.0,0.00026301,4]
[340944536,1730142643945,-500.0,0.00026301,4]
[340944537,1730142643954,-500.0,0.00026301,4]
[340944538,1730142643964,-500.0,0.00026301,4]
[340944539,1730142643974,-500.0,0.00026301,4]
[340944540,1730142643984,-469.94804544,0.00026301,4]
[340944541,1730142643993,-500.0,0.00026301,4]
[340944542,1730142644003,-255.99964002,0.00026301,4]
[340944543,1730142644012,-500.0,0.00026301,4]
[340944544,1730142644027,-154.750633,0.00026301,7]
[340944545,1730142644037,-151.0,0.00026301,7]
[340944546,1730142644046,-412.90874391,0.00026301,4]
[340944547,1730142644055,-500.0,0.00026301,4]
[340944548,1730142644066,-500.0,0.00026301,4]
[340944549,1730142644075,-500.0,0.00026301,4]
[340944550,1730142644084,-500.0,0.00026301,4]
[340944551,1730142644093,-500.0,0.00026301,4]
[340944552,1730142644103,-500.0,0.00026301,4]
[340944553,1730142644113,-500.0,0.00026301,4]
[340944554,1730142644123,-500.0,0.00026301,4]
[340944555,1730142644132,-500.0,0.00026301,4]
[340944556,1730142644142,-500.0,0.00026301,4]
[340944557,1730142644151,-500.0,0.00026301,4]
[340944558,1730142644160,-500.0,0.00026301,4]
[340944559,1730142644170,-71.0027753,0.00026301,4]
[340944560,1730142644248,-562.76647442,0.00026301,4]
[340944561,1730142644266,-126.20075028,0.00026301,4]
[340944562,1730142644275,-254.16178859,0.00026301,4]
[340944563,1730142644440,-151.0,0.00025175,7]
[340944564,1730142644450,-151.0,0.00025301,7]
[340944565,1730142644460,-192.18,0.00025469,10]
[340944566,1730142644469,-240.83115611,0.00026301,4]
[340944567,1730142644482,-401.01977184,0.00026301,4]
[340944568,1730142644493,-98.98022816,0.00026301,4]
[340944569,1730142644503,-500.0,0.00026301,4]
[340944570,1730142644514,-500.0,0.00026301,4]
[340944571,1730142644523,-520.66,0.00026301,4]
[340944572,1730142644533,-500.0,0.00026301,4]
[340944573,1730142644543,-500.0,0.00026301,4]
[340944574,1730142644558,-500.0,0.00026301,4]
[340944575,1730142644567,-500.0,0.00026301,4]
[340944576,1730142644577,-711.07,0.00026301,4]
[340944577,1730142644586,-500.0,0.00026301,4]
[340944578,1730142644596,-500.0,0.00026301,4]
[340944579,1730142644606,-500.0,0.00026301,4]
[340944580,1730142644616,-500.0,0.00026301,4]
[340944581,1730142644625,-500.0,0.00026301,4]
[340944582,1730142644635,-500.0,0.00026301,4]
[340944583,1730142644644,-500.0,0.00026301,4]
[340944584,1730142644654,-500.0,0.00026301,4]
[340944585,1730142644664,-848.9,0.00026301,4]
[340944586,1730142644674,-500.0,0.00026301,4]
[340944587,1730142644683,-1627.25,0.00026301,4]
[340944588,1730142644693,-1195.33,0.00026301,4]
[340944589,1730142644702,-151.0,0.00026301,7]
[340944590,1730142644712,-1000.0,0.00026342,2]
[340944591,1730142644721,-500.0,0.00026573,2]
[340944592,1730142644732,-500.0,0.00026575,4]
[340944593,1730142644742,-500.0,0.00026575,4]
[340944594,1730142644751,-500.0,0.00026575,4]
[340944595,1730142644761,-500.0,0.00026575,4]
[340944596,1730142644771,-500.0,0.00026575,4]
[340944597,1730142644782,-500.0,0.00026575,4]
[340944598,1730142644791,-500.0,0.00026575,4]
[340944599,1730142644801,-500.0,0.00026575,4]
[340944600,1730142644811,-500.0,0.00026575,4]
[340944601,1730142644821,-304.98926214,0.00026575,4]
[340944602,1730142644831,-500.0,0.00026575,4]
[340944603,1730142644841,-500.0,0.00026575,4]
[340944604,1730142644851,-645.38736723,0.00026575,4]
[340944605,1730142644860,-500.0,0.00026575,4]
[340944606,1730142644871,-500.0,0.00026575,4]
[340944607,1730142644881,-500.0,0.00026575,4]
[340944608,1730142644891,-500.0,0.00026575,4]
[340944609,1730142644902,-759.97,0.00026575,4]
[340944610,1730142644914,-337.474659,0.00026575,7]
[340944611,1730142644924,-65.31896189,0.00026575,7]
[340944638,1730142646318,21.23317395,0.00022,2]
[340944641,1730142646340,175.19046712,0.00022,2]
[340944688,1730142646736,-15.57635893,0.00022,2]
[340944690,1730142646746,-500.0,0.00024657,4]
[340944692,1730142646756,-85.68103811,0.00026575,7]
[340944693,1730142646766,-337.474659,0.00026575,7]
[340944695,1730142646775,-407.89384831,0.00026575,4]
[340944696,1730142646787,-92.10615169,0.00026575,4]
[340944698,1730142646797,-500.0,0.00026575,4]
[340944700,1730142646806,-151.0,0.00026575,7]
[340944701,1730142646815,-500.0,0.00026575,4]
[340944703,1730142646824,-151.0,0.00026575,7]
[340944704,1730142646833,-480.470907,0.00026575,7]
[340944706,1730142646843,-480.470907,0.00026575,7]
[340944707,1730142646853,-520.66,0.00026575,4]
[340944709,1730142646862,-500.0,0.00026575,4]
[340944711,1730142646871,-500.0,0.00026575,4]
[340944712,1730142646881,-446.52961,0.00026575,7]
[340944714,1730142646891,-500.0,0.00026575,4]
[340944716,1730142646910,-259.456294,0.00026575,7]
[340944718,1730142646920,-446.52961,0.00026575,7]
[340944719,1730142646929,-151.0,0.00026575,7]
[340944721,1730142646939,-259.456294,0.00026575,7]
[340944722,1730142646948,-500.0,0.00026575,4]
[340944723,1730142646959,-711.07,0.00026575,4]
[340944724,1730142646969,-500.0,0.00026575,4]
[340944725,1730142646980,-170.43214552,0.00026575,4]
[340944726,1730142646990,-500.0,0.00026575,4]
[340944727,1730142647000,-235.6941,0.00026575,7]
[340944728,1730142647010,-500.0,0.00026575,4]
[340944729,1730142647021,-235.6941,0.00026575,7]
[340944730,1730142647032,-500.0,0.00026575,4]
[340944731,1730142647041,-500.0,0.00026575,4]
[340944732,1730142647051,-500.0,0.00026575,4]
[340944733,1730142647061,-500.0,0.00026575,4]
[340944734,1730142647072,-500.0,0.00026575,4]
[340944735,1730142647082,-848.9,0.00026575,4]
[340944736,1730142647091,-1627.25,0.00026575,4]
[340944737,1730142647103,-1195.33,0.00026575,4]
[340944738,1730142647112,-150.0,0.00026575,2]
[340944739,1730142647121,-1793.2,0.000266,14]
[340944740,1730142647130,-420.0,0.00026715,2]
[340944741,1730142647140,-151.0,0.00026738,7]
[340944742,1730142647150,-151.0,0.00026747,7]
[340944743,1730142647159,-153.858591,0.00026747,7]
[340944744,1730142647167,-153.858591,0.00026747,7]
[340944745,1730142647179,-500.0,0.00026835,2]
[340944746,1730142647188,-151.0,0.00026839,7]
[340944747,1730142647198,-1000.0,0.00026842,2]
[340944748,1730142647207,-1000.0,0.00026842,2]
[340944749,1730142647216,-1000.0,0.00026842,2]
[340944750,1730142647226,-1000.0,0.00026842,2]
[340944751,1730142647236,-1000.0,0.00026842,2]
[340944752,1730142647245,-500.0,0.00026849,4]
[340944753,1730142647255,-151.0,0.00026849,7]
[340944754,1730142647264,-500.0,0.00026849,4]
[340944755,1730142647274,-500.0,0.00026849,4]
[340944756,1730142647283,-322.41074001,0.00026849,4]
[340944757,1730142647292,-500.0,0.00026849,4]
[340944758,1730142647301,-403.73471267,0.00026849,4]
[340944759,1730142647311,-500.0,0.00026849,4]
[340944760,1730142647320,-500.0,0.00026849,4]
[340944761,1730142647329,-500.0,0.00026849,4]
[340944762,1730142647338,-205.265199,0.00026849,7]
[340944763,1730142647348,-205.265199,0.00026849,7]
[340944764,1730142647357,-151.0,0.00026849,7]
[340944765,1730142647366,-151.0,0.00026849,7]
[340944766,1730142647376,-151.0,0.00026849,7]
[340944767,1730142647385,-500.0,0.00026849,4]
[340944768,1730142647394,-151.0,0.00026849,7]
[340944769,1730142647404,-192.778145,0.00026849,7]
[340944770,1730142647413,-192.778145,0.00026849,7]
[340944771,1730142647422,-210.05672894,0.00026849,4]
[340944772,1730142647432,-500.0,0.00026849,4]
[340944773,1730142647441,-500.0,0.00026849,4]
[340944774,1730142647451,-500.0,0.00026849,4]
[340944775,1730142647460,-500.0,0.00026849,4]
[340944776,1730142647470,-759.97,0.00026849,4]
[340944777,1730142647480,-500.0,0.00026849,4]
[340944778,1730142647490,-500.0,0.00026849,4]
[340944779,1730142647499,-500.0,0.00026849,4]
[340944780,1730142647509,-520.66,0.00026849,4]
[340944781,1730142647518,-500.0,0.00026849,4]
[340944782,1730142647528,-500.0,0.00026849,4]
[340944783,1730142647543,-500.0,0.00026849,4]
[340944784,1730142647552,-321.7698456,0.00026849,4]
[340944785,1730142647562,-711.07,0.00026849,4]
[340944786,1730142647573,-481.51529112,0.00026849,4]
[340944787,1730142647583,-500.0,0.00026849,4]
[340944788,1730142647592,-500.0,0.00026849,4]
[340944789,1730142647602,-500.0,0.00026849,4]
[340944790,1730142647611,-500.0,0.00026849,4]
[340944791,1730142647622,-416.38977214,0.00026849,4]
[340944792,1730142647631,-500.0,0.00026849,4]
[340944793,1730142647642,-500.0,0.00026849,4]
[340944794,1730142647651,-848.9,0.00026849,4]
[340944795,1730142647661,-1627.25,0.00026849,4]
[340944796,1730142647671,-1195.33,0.00026849,4]
[340944797,1730142647680,-500.0,0.00026873,2]
[340944798,1730142647689,-432.33000106,0.00026873,2]
[340944799,1730142647699,-500.0,0.00026881,2]
[340944800,1730142647708,-150.112233,0.000269,16]
[340944801,1730142647718,-500.0,0.00026985,2]
[340944802,1730142647729,-150.112233,0.000271,17]
[340944803,1730142647739,-13515.99420365,0.00027107,2]
[340944805,1730142987126,157.518062,0.00013973,2]
[340944961,1730143542617,188.756555,0.00013973,2]
[340944962,1730143543103,-185.0,0.00022,2]
[340944963,1730143543126,-81.85142057,0.00022192,2]
[340944981,1730143643107,-103.14857943,0.00022192,2]
[340944982,1730143643130,-232.70967786,0.0002277,2]
[340944983,1730143648107,-84.11632014,0.0002277,2]
[340944985,1730143648129,-666.017085,0.00022867,2]
[340944986,1730143648151,-300.0,0.00022903,2]
[340944987,1730143648174,-300.0,0.00022903,2]
[340944988,1730143648197,-2189.66306303,0.00022904,2]
[340944989,1730143653111,-248.65571902,0.00022904,2]
[340944993,1730143714014,176.20742394,0.00012,7]
[340944995,1730143714863,17571.08455887,0.000134,2]
[340944996,1730143715456,266.99521881,0.00014114,2]
[340945002,1730143720793,2665.86690762,0.0003567,30]
[340945005,1730143725535,29707.81509078,0.00014,2]
[340945008,1730143729751,560.15917379,0.000149,2]
[340945010,1730143749143,-300.0,0.00020376,2]
[340945011,1730143749165,-300.0,0.00020376,2]
[340945012,1730143749186,-47283.81751933,0.00020377,2]
[340945013,1730143749207,-150.0,0.00021443,2]
[340945014,1730143749230,-15931.65711733,0.00022,30]
[340945015,1730143749252,-420.0,0.00022179,2]
[340945016,1730143749273,-166.666667,0.00022599,2]
[340945017,1730143749295,-2230.904919,0.00022873,2]
[340945018,1730143749317,-21424.11520621,0.00022904,2]
[340945019,1730143750126,-1037.56601174,0.00022904,2]
[340945020,1730143750155,-150.999999,0.00023,2]
[340945021,1730143750177,-185.0,0.00023014,2]
[340945022,1730143750198,-160.8892045,0.00023146,2]
[340945023,1730143750220,-163.58304,0.00023257,2]
[340945024,1730143750243,-163.58304,0.00023408,2]
[340945025,1730143762143,-316.825998,0.00023455,2]
[340945026,1730143762164,-170.526021,0.00023465,2]
[340945027,1730143762185,-163.58304,0.0002356,2]
[340945028,1730143762207,-163.58304,0.00023711,2]
[340945029,1730143762228,-234.38796988,0.00023852,2]
[340945030,1730143762251,-163.58304,0.00023863,2]
[340945031,1730143781356,214.50849112,0.00023355,2]
[340945032,1730143781389,1251.2809165,0.00023355,2]
[340945033,1730143783090,389.43158826,0.00013973,2]
[340945034,1730143783117,110.56841174,0.00013973,2]
[340945035,1730143783155,85.43158826,0.00021091,2]
[340945036,1730143783182,338.51874915,0.00021091,2]
[340945037,1730143783221,1000.0,0.00015342,2]
[340945038,1730143783389,1500.0,0.00017847,2]
[340945041,1730143789143,18971.32965542,0.0003567,30]
[340945042,1730143789399,1000.0,0.00015342,2]
[340945043,1730143789450,500.0,0.00013973,2]
[340945044,1730143789501,1500.0,0.00017847,2]
[340945047,1730143800670,160.0,0.00013973,2]
[340945111,1730143832766,-1576.04966259,0.00021091,2]
[340945113,1730143832776,-2000.0,0.00021091,2]
[340945115,1730143832786,-1602.28547445,0.00023355,2]
[340945116,1730143832795,-163.58304,0.00024014,2]
[340945118,1730143832804,-316.825998,0.0002414,2]
[340945120,1730143832813,-192.0,0.00024164,2]
[340945122,1730143832823,-163.58304,0.00024165,2]
[340945124,1730143832833,-300.0,0.00024223,2]
[340945126,1730143832842,-157.518062,0.00024224,2]
[340945129,1730143832852,-163.58304,0.00024317,2]
[340945131,1730143832861,-163.58304,0.00024468,2]
[340945132,1730143832871,-124.73749499,0.00024557,2]
[340945135,1730143832883,-6559.66852235,0.00024557,2]
[340945136,1730143832892,-338.9558075,0.00024557,2]
[340945138,1730143832901,-222.37338803,0.00024657,2]
[340945140,1730143832910,-500.0,0.00024657,4]
[340945142,1730143832919,-500.0,0.00024657,4]
[340945144,1730143832929,-500.0,0.00024657,4]
[340945146,1730143832938,-500.0,0.00024657,4]
[340945149,1730143832951,-500.0,0.00024657,4]
[340945150,1730143832960,-500.0,0.00024657,4]
[340945152,1730143832970,-500.0,0.00024657,4]
[340945155,1730143832979,-500.0,0.00024657,4]
[340945157,1730143832989,-410.0096257,0.00024657,4]
[340945158,1730143832999,-500.0,0.00024657,4]
[340945161,1730143833008,-222.49444747,0.00024657,4]
[340945162,1730143833018,-500.0,0.00024657,4]
[340945164,1730143833028,-500.0,0.00024657,4]
[340945166,1730143833038,-500.0,0.00024657,4]
[340945168,1730143833049,-500.0,0.00024657,4]
[340945169,1730143833059,-565.93,0.00024657,4]
[340945170,1730143833068,-1348.03,0.00024657,4]
[340945171,1730143833078,-127.09198171,0.00024657,4]
[340945172,1730143833090,-372.90801829,0.00024657,4]
[340945173,1730143833100,-325.05198171,0.00024657,4]
[340945174,1730143833111,-174.94801829,0.00024657,4]
[340945175,1730143833121,-500.0,0.00024657,4]
[340945176,1730143833130,-500.0,0.00024657,4]
[340945177,1730143833139,-500.0,0.00024657,4]
[340945178,1730143833150,-500.0,0.00024657,4]
[340945179,1730143833160,-500.0,0.00024657,4]
[340945180,1730143833169,-500.0,0.00024657,4]
[340945181,1730143833186,-982.78,0.00024657,4]
[340945182,1730143833201,-500.0,0.00024657,4]
[340945183,1730143833210,-500.0,0.00024657,4]
[340945184,1730143833219,-500.0,0.00024657,4]
[340945185,1730143833228,-500.0,0.00024657,4]
[340945186,1730143833238,-500.0,0.00024657,4]
[340945187,1730143833248,-541.27,0.00024657,4]
[340945188,1730143833258,-500.0,0.00024657,4]
[340945189,1730143833268,-460.31172617,0.00024657,4]
[340945208,1730143838110,-162.744252,0.00023501,2]
[340945209,1730143838120,-162.744252,0.00023654,2]
[340945210,1730143838130,-162.744252,0.00023807,2]
[340945211,1730143838139,-162.744252,0.0002396,2]
[340945212,1730143838149,-162.744252,0.00024113,2]
[340945213,1730143838159,-39.68827383,0.00024657,4]
[340945214,1730143838168,-500.0,0.00024657,4]
[340945215,1730143838178,-500.0,0.00024657,4]
[340945216,1730143838188,-500.0,0.00024657,4]
[340945217,1730143838198,-500.0,0.00024657,4]
[340945218,1730143838208,-500.0,0.00024657,4]
[340945219,1730143838217,-500.0,0.00024657,4]
[340945220,1730143838227,-152.65801389,0.00024657,4]
[340945221,1730143838236,-500.0,0.00024657,4]
[340945222,1730143838246,-500.0,0.00024657,4]
[340945223,1730143838256,-500.0,0.00024657,4]
[340945224,1730143838266,-500.0,0.00024657,4]
[340945225,1730143838276,-562.93,0.00024657,4]
[340945226,1730143838285,-500.0,0.00024657,4]
[340945227,1730143838295,-500.0,0.00024657,4]
[340945228,1730143838304,-500.0,0.00024657,4]
[340945229,1730143838314,-500.0,0.00024657,4]
[340945230,1730143838323,-500.0,0.00024657,4]